bitfinex/quotes_BTCUSD_20250417
["timestamp","ask_amount","ask_price","bid_price","bid_amount"]
[1744875738183,0.01,84699.0,84697.0,0.001]
[1744875738645,0.01,84699.0,84698.0,0.23613308]
[1744875739032,0.01,84699.0,84697.0,0.23713311]
[1744875739231,0.01,84699.0,84697.0,0.2394944]
[1744875739406,0.01,84699.0,84697.0,0.33303311]
[1744875740540,0.01,84699.0,84697.0,0.33203311]
[1744875741287,0.01,84699.0,84697.0,0.33303311]
[1744875741699,0.23751404,84718.0,84697.0,0.33303311]
[1744875741700,0.00143581,84718.0,84717.0,0.23608012]
[1744875741895,0.00143581,84718.0,84717.0,0.58734869]
[1744875742248,0.00045031,84718.0,84717.0,0.58498803]
[1744875742460,0.00045031,84718.0,84717.0,0.59666326]
[1744875743095,0.00145031,84718.0,84717.0,0.59666326]
[1744875743476,0.00045031,84718.0,84717.0,0.59666326]
[1744875743697,0.00245031,84718.0,84717.0,0.59966326]
[1744875744099,0.00045031,84718.0,84717.0,0.59966326]
[1744875744234,0.00145031,84718.0,84717.0,0.60566326]
[1744875745068,0.24823072,84743.0,84728.0,0.33384947]
[1744875745069,0.0004216,84743.0,84728.0,0.33384947]
[1744875745288,0.0004216,84743.0,84728.0,0.45329738]
[1744875746332,0.0004216,84743.0,84728.0,0.45529738]
[1744875746530,0.01180066,84741.0,84728.0,0.45529738]
[1744875746744,0.01180191,84732.0,84728.0,0.002]
[1744875747128,0.01180177,84733.0,84728.0,0.37456947]
[1744875747685,0.01180177,84733.0,84728.0,0.37156947]
[1744875748068,0.01180177,84733.0,84728.0,0.37256947]
[1744875748390,0.0004216,84734.0,84728.0,0.37056947]
[1744875751093,0.0004216,84734.0,84728.0,0.23704947]
[1744875751429,0.0004216,84734.0,84728.0,0.37056947]
[1744875752997,0.0004216,84734.0,84728.0,0.23704947]
[1744875753220,0.0004216,84734.0,84728.0,0.37056947]
[1744875754941,0.0004216,84734.0,84728.0,0.23704947]
[1744875755154,0.0004216,84734.0,84728.0,0.41756944]
[1744875755400,0.01180177,84733.0,84728.0,0.37056947]
[1744875755904,0.01180191,84732.0,84728.0,0.37056947]
[1744875756040,0.01180177,84733.0,84728.0,0.37056947]
[1744875756449,0.01180177,84733.0,84728.0,0.36956947]
[1744875756845,0.0004216,84734.0,84728.0,0.36956947]
[1744875757046,0.01180177,84733.0,84728.0,0.36956947]
[1744875758382,0.01180205,84731.0,84728.0,0.36956947]
[1744875758789,0.01180191,84732.0,84728.0,0.36956947]
[1744875759513,0.01180191,84732.0,84728.0,0.23604947]
[1744875759715,0.23607733,84718.0,84717.0,4.519e-05]
[1744875760329,0.24787534,84720.0,84717.0,0.01340171]
[1744875761180,0.23607733,84718.0,84717.0,0.01440171]
[1744875761382,0.01180358,84720.0,84717.0,0.01340171]
[1744875761383,0.23607455,84719.0,84717.0,0.01340171]
[1744875761795,0.23607455,84719.0,84717.0,0.01440171]
[1744875762004,0.23607455,84719.0,84718.0,0.01715308]
[1744875762368,0.01180358,84720.0,84718.0,0.01715308]
[1744875762611,0.02054776,84720.0,84718.0,0.01715308]
[1744875763050,0.25662167,84720.0,84718.0,0.01715308]
[1744875763824,0.25662167,84720.0,84718.0,0.01815308]
[1744875764034,0.25662167,84720.0,84719.0,0.01649037]
[1744875765099,0.25662167,84720.0,84718.0,0.001]
[1744875766054,0.23607733,84718.0,84717.0,4.519e-05]
[1744875766263,0.00874418,84720.0,84718.0,0.23607733]
[1744875766467,0.24786151,84725.0,84718.0,0.23607733]
[1744875766468,0.0004216,84729.0,84726.0,0.01180275]
[1744875766672,0.0004216,84729.0,84728.0,0.23604947]
[1744875767995,0.0024216,84729.0,84728.0,0.23604947]
[1744875768168,0.01145805,84729.0,84728.0,0.23604947]
[1744875768483,0.0024216,84729.0,84728.0,0.23604947]
[1744875768685,0.0024216,84729.0,84728.0,0.25707636]
[1744875769069,0.0004216,84729.0,84728.0,0.25707636]
[1744875769244,0.0034216,84729.0,84728.0,0.25707636]
[1744875769650,0.0024216,84729.0,84728.0,0.25707636]
[1744875770126,0.0034216,84729.0,84728.0,0.25707636]
[1744875771494,0.0034216,84729.0,84720.0,0.01180358]
[1744875771495,0.23605582,84726.0,84720.0,0.01180358]
[1744875771696,0.23607636,84719.0,84717.0,4.519e-05]
[1744875771896,0.01180358,84720.0,84717.0,4.519e-05]
[1744875772099,0.01180358,84720.0,84718.0,0.01689783]
[1744875772728,0.24787605,84720.0,84717.0,4.519e-05]
[1744875772883,0.23607733,84718.0,84717.0,0.00204519]
[1744875773089,0.23607733,84718.0,84717.0,4.519e-05]
[1744875774014,0.23607733,84718.0,84717.0,0.00204519]
[1744875774217,0.23607652,84719.0,84717.0,0.00204519]
[1744875775272,0.23607652,84719.0,84717.0,0.00304519]
[1744875775897,0.23607652,84719.0,84717.0,4.519e-05]
[1744875776067,0.23607652,84719.0,84717.0,0.00204519]
[1744875776572,0.23607652,84719.0,84717.0,0.00104519]
[1744875776772,0.23607652,84719.0,84717.0,0.02811959]
[1744875780580,0.01180358,84720.0,84717.0,0.02811959]
[1744875780732,0.23607455,84719.0,84717.0,0.02811959]
[1744875781330,0.23607455,84719.0,84717.0,0.02711959]
[1744875781777,0.23607455,84719.0,84717.0,0.02811959]
[1744875781971,0.23607455,84719.0,84718.0,0.02092557]
[1744875783315,0.01180317,84723.0,84719.0,0.01180372]
[1744875783457,0.01180344,84721.0,84718.0,0.03372943]
[1744875784324,0.23607455,84719.0,84718.0,0.02192557]
[1744875784481,0.23590499,84719.0,84718.0,0.02192557]
[1744875784786,0.24787394,84721.0,84718.0,0.02192557]
[1744875784958,0.24787394,84721.0,84719.0,0.0260744]
[1744875789241,0.23607733,84718.0,84717.0,4.519e-05]
[1744875789448,0.78772524,84718.0,84717.0,4.519e-05]
[1744875789820,0.80226609,84718.0,84717.0,4.519e-05]
[1744875790027,0.80226609,84718.0,84717.0,1e-08]
[1744875791052,1.21316609,84718.0,84717.0,0.00100001]
[1744875791562,1.21616609,84718.0,84717.0,1e-08]
[1744875791764,1.22016609,84718.0,84717.0,1e-08]
[1744875792108,1.22716609,84718.0,84717.0,0.00100001]
[1744875792297,0.23614423,84694.0,84693.0,0.0127146]
[1744875792447,0.23614423,84694.0,84693.0,0.04159466]
[1744875792873,0.23614423,84694.0,84693.0,0.01316491]
[1744875793895,0.01180651,84699.0,84695.0,0.23613937]
[1744875794102,0.24793095,84701.0,84697.0,0.01180679]
[1744875794305,0.01180623,84701.0,84697.0,0.01180679]
[1744875794765,0.01180637,84700.0,84697.0,0.01180679]
[1744875795038,0.24793402,84700.0,84696.0,0.01180693]
[1744875795283,0.01180651,84699.0,84696.0,0.01180693]
[1744875795664,0.02051346,84699.0,84696.0,0.01180693]
[1744875795987,0.02051346,84699.0,84695.0,0.24794644]
[1744875796164,0.01180665,84698.0,84693.0,0.06206491]
[1744875796365,0.01180679,84697.0,84693.0,0.26111735]
[1744875796604,0.01180693,84696.0,84693.0,0.01316491]
[1744875796981,0.23614144,84695.0,84693.0,0.01316491]
[1744875797147,0.01180693,84696.0,84694.0,0.0272937]
[1744875798586,0.23614144,84695.0,84694.0,0.0272937]
[1744875799019,0.01180693,84696.0,84694.0,0.0272937]
[1744875799187,0.23614144,84695.0,84693.0,0.01316491]
[1744875800405,0.001,84696.0,84693.0,0.24930943]
[1744875800617,0.01180693,84696.0,84693.0,0.01316491]
[1744875801041,0.24794772,84696.0,84693.0,0.01316491]
[1744875801314,0.23614361,84695.0,84693.0,0.01316491]
[1744875804249,0.24794772,84696.0,84693.0,0.01316491]
[1744875806084,0.23614356,84695.0,84693.0,0.01316491]
[1744875809785,0.24614356,84695.0,84693.0,0.01316491]
[1744875815294,0.24714356,84695.0,84693.0,0.01316491]
[1744875816271,0.24814356,84695.0,84693.0,0.01316491]
[1744875818638,0.24714356,84695.0,84693.0,0.01316491]
[1744875818826,0.24614356,84695.0,84693.0,0.01316491]
[1744875819135,0.24814356,84695.0,84693.0,0.01316491]
[1744875820756,0.58814356,84695.0,84694.0,0.02493259]
[1744875820959,0.58814356,84695.0,84693.0,0.01316491]
[1744875821852,0.58714356,84695.0,84693.0,0.01316491]
[1744875821988,0.58814356,84695.0,84693.0,0.01316491]
[1744875822531,0.58914356,84695.0,84693.0,0.01316491]
[1744875830696,0.013,84695.0,84693.0,0.01316491]
[1744875830909,0.013,84695.0,84693.0,0.24930942]
[1744875832355,0.013,84695.0,84694.0,0.0465]
[1744875832567,0.013,84695.0,84694.0,0.12076558]
[1744875832972,0.012,84695.0,84694.0,0.12076558]
[1744875833376,0.01,84695.0,84694.0,0.13256242]
[1744875834732,0.011,84695.0,84694.0,0.13656242]
[1744875834934,0.011,84695.0,84694.0,0.13856242]
[1744875836358,0.011,84695.0,84694.0,0.12440438]
[1744875844814,0.011,84695.0,84694.0,0.12676546]
[1744875846488,0.011,84695.0,84694.0,0.12440438]
[1744875848697,0.011,84695.0,84694.0,0.12584797]
[1744875851851,0.011,84695.0,84694.0,0.12820906]
[1744875852649,0.011,84695.0,84694.0,0.12584797]
[1744875853576,0.011,84695.0,84694.0,0.10374359]
[1744875855883,0.011,84695.0,84694.0,0.05394359]
[1744875856089,0.011,84695.0,84694.0,0.00744359]
[1744875859747,0.011,84695.0,84694.0,0.00544359]
[1744875860202,0.011,84695.0,84694.0,0.00744359]
[1744875860781,0.011,84695.0,84694.0,0.00544359]
[1744875861030,0.01,84695.0,84694.0,0.00244359]
[1744875861230,0.011,84695.0,84694.0,0.00644359]
[1744875861432,0.011,84695.0,84694.0,0.00244359]
[1744875861797,0.011,84695.0,84694.0,0.00444359]
[1744875866873,0.011,84695.0,84694.0,0.00680483]
[1744875867697,0.011,84695.0,84694.0,0.00444359]
[1744875869684,0.011,84695.0,84694.0,0.00680471]
[1744875870085,0.011,84695.0,84694.0,0.12725257]
[1744875870311,0.011,84695.0,84694.0,0.17365257]
[1744875870858,0.011,84695.0,84694.0,0.19575904]
[1744875870993,0.011,84695.0,84694.0,0.19339797]
[1744875873954,0.011,84695.0,84694.0,0.14699797]
[1744875875205,0.011,84695.0,84694.0,0.02755006]
[1744875877848,0.011,84695.0,84694.0,0.00544359]
[1744875878709,0.011,84695.0,84694.0,0.00688718]
[1744875884103,0.011,84695.0,84694.0,0.24303141]
[1744875884800,0.01,84695.0,84694.0,0.24003141]
[1744875885007,0.01,84695.0,84694.0,0.24203141]
[1744875891500,0.01,84695.0,84694.0,0.23814423]
[1744875892599,0.01,84695.0,84694.0,0.23958782]
[1744875899691,0.01,84695.0,84694.0,0.00344359]
[1744875901576,0.01,84695.0,84694.0,0.002]
[1744875901753,0.01,84695.0,84694.0,0.00344359]
[1744875930735,0.01,84695.0,84694.0,0.00444359]
[1744875931038,0.01,84695.0,84694.0,0.00680482]
[1744875931442,0.01,84695.0,84694.0,0.14036482]
[1744875931656,0.01,84695.0,84694.0,0.14180841]
[1744875931798,0.01,84695.0,84694.0,0.13980841]
[1744875932077,0.011,84695.0,84694.0,0.14144718]
[1744875932250,0.011,84695.0,84694.0,0.13980826]
[1744875932667,0.012,84695.0,84694.0,0.14480826]
[1744875933045,0.012,84695.0,84694.0,0.18780826]
[1744875933357,0.012,84695.0,84694.0,0.18980826]
[1744875933785,0.012,84695.0,84694.0,0.30925617]
[1744875933922,0.012,84695.0,84694.0,0.30689509]
[1744875946913,0.011,84695.0,84694.0,0.30689509]
[1744875947116,0.01,84695.0,84694.0,0.64389509]
[1744875947325,0.011,84695.0,84694.0,0.69489509]
[1744875947528,0.011,84695.0,84694.0,0.69289509]
[1744875947878,0.011,84695.0,84694.0,0.69489509]
[1744875948465,0.011,84695.0,84694.0,0.69289509]
[1744875948661,0.01,84695.0,84694.0,0.68889509]
[1744875949019,0.011,84695.0,84694.0,0.69889509]
[1744875949445,0.011,84695.0,84694.0,0.56533509]
[1744875949651,0.011,84695.0,84694.0,0.69885509]
[1744875951234,0.011,84695.0,84694.0,0.69496791]
[1744875951442,0.011,84695.0,84694.0,0.6974115]
[1744875956558,1e-08,84695.0,84694.0,0.6974115]
[1744875958182,1e-08,84695.0,84694.0,1.1162115]
[1744875960837,1e-08,84695.0,84694.0,1.0692115]
[1744875961629,1e-08,84695.0,84694.0,1.0682115]
[1744875964978,1e-08,84695.0,84694.0,1.1173115]
[1744875971851,1e-08,84695.0,84694.0,1.14920849]
[1744875972607,1e-08,84695.0,84694.0,1.14520849]
[1744875972735,1e-08,84695.0,84694.0,1.12185235]
[1744875972942,1e-08,84695.0,84694.0,1.1657515]
[1744875973353,1e-08,84695.0,84694.0,1.18384273]
[1744875973760,1e-08,84695.0,84694.0,1.18784273]
[1744875974199,1e-08,84695.0,84694.0,1.17984273]
[1744875974601,1e-08,84695.0,84694.0,1.18684273]
[1744875974963,0.0493,84725.0,84722.0,0.0118033]
[1744875975167,0.0493,84725.0,84723.0,0.2360634]
[1744875975307,0.0493,84725.0,84723.0,0.25815463]
[1744875976019,0.0493,84725.0,84724.0,0.02209123]
[1744875976226,0.0513,84725.0,84724.0,0.02215558]
[1744875976625,0.0523,84725.0,84724.0,0.02215558]
[1744875977124,0.0513,84725.0,84724.0,0.02215558]
[1744875977539,0.0493,84725.0,84724.0,0.02215558]
[1744875977901,0.0503,84725.0,84724.0,0.02215558]
[1744875978067,0.0493,84725.0,84724.0,0.02215558]
[1744875978464,0.00863155,84728.0,84725.0,0.24786072]
[1744875978671,0.0004216,84729.0,84727.0,0.23605226]
[1744875979048,0.0004216,84729.0,84728.0,0.02209123]
[1744875979865,0.0014216,84729.0,84728.0,0.02209123]
[1744875980270,0.0004216,84729.0,84728.0,0.02209123]
[1744875980806,0.0034216,84729.0,84728.0,0.02209123]
[1744875981361,0.0044216,84729.0,84728.0,0.02209123]
[1744875982015,0.0034216,84729.0,84728.0,0.02209123]
[1744875982181,0.0004216,84729.0,84728.0,0.02209123]
[1744875983025,0.0004216,84729.0,84728.0,0.02545155]
[1744875984355,0.0004216,84729.0,84728.0,0.02445155]
[1744875984554,0.0004216,84729.0,84728.0,0.02645155]
[1744875984715,0.0004216,84729.0,84728.0,0.02409123]
[1744875985689,0.0004216,84729.0,84728.0,0.02509123]
[1744875986177,0.0004216,84729.0,84728.0,0.02409123]
[1744875986492,0.0004216,84729.0,84728.0,0.02609123]
[1744875986780,0.0004216,84729.0,84728.0,0.02845141]
[1744875990126,0.0004216,84729.0,84728.0,0.14789932]
[1744875991071,1e-08,84729.0,84728.0,0.48789932]
[1744875991269,1e-08,84729.0,84728.0,0.57713914]
[1744875991649,1e-08,84729.0,84728.0,0.59712358]
[1744875992088,1e-08,84734.0,84733.0,0.57603554]
[1744875992288,0.0004216,84752.0,84750.0,0.2359882]
[1744875992491,0.0004216,84752.0,84750.0,0.51336683]
[1744875992712,0.0004216,84752.0,84750.0,0.51100734]
[1744875993730,0.0004216,84752.0,84750.0,0.51107169]
[1744875993941,0.0004216,84752.0,84750.0,0.51307169]
[1744875997706,0.0004216,84752.0,84750.0,0.52467213]
[1744875999158,0.0478215,84751.0,84750.0,0.26014378]
[1744875999363,0.0956215,84751.0,84750.0,0.15767558]
[1744875999712,0.10726566,84751.0,84750.0,0.15767558]
[1744875999914,0.10726566,84751.0,84750.0,0.13558435]
[1744876000114,0.10726566,84751.0,84750.0,0.13358435]
[1744876000320,0.0966215,84751.0,84750.0,0.13358435]
[1744876004025,0.0966215,84751.0,84750.0,6.435e-05]
[1744876004876,0.0014215,84751.0,84750.0,0.46051226]
[1744876005078,0.0014215,84751.0,84750.0,1.0464467]
[1744876006298,0.0004215,84751.0,84750.0,1.0474467]
[1744876006488,0.0004215,84751.0,84750.0,1.0484467]
[1744876006709,0.0004215,84751.0,84750.0,1.0474467]
[1744876006907,0.0004215,84751.0,84750.0,1.0464467]
[1744876007104,0.0004215,84751.0,84750.0,1.0574467]
[1744876007296,0.0014215,84751.0,84750.0,1.10444667]
[1744876007476,0.0014215,84751.0,84750.0,1.0574467]
[1744876008635,0.0014215,84751.0,84750.0,1.0274467]
[1744876009992,0.0004215,84754.0,84751.0,0.23598541]
[1744876010345,0.0004215,84754.0,84752.0,0.12180712]
[1744876010551,0.0004215,84754.0,84753.0,0.36199224]
[1744876010721,0.0004215,84754.0,84753.0,0.71741999]
[1744876011243,0.0014215,84754.0,84753.0,0.71741999]
[1744876011476,0.0014215,84754.0,84753.0,0.71886358]
[1744876011826,0.00902552,84779.0,84758.0,0.23596592]
[1744876012056,0.00902552,84779.0,84758.0,0.35777304]
[1744876012283,0.00902552,84779.0,84758.0,0.37740607]
[1744876013065,0.00902552,84779.0,84758.0,0.38040607]
[1744876013263,0.00902552,84779.0,84758.0,0.38540607]
[1744876013901,0.0463,84786.0,84758.0,0.38540607]
[1744876014874,0.00891408,84779.0,84758.0,0.38540607]
[1744876019907,1e-08,84759.0,84758.0,0.43520607]
[1744876020748,1e-08,84759.0,84758.0,0.38540607]
[1744876021816,1e-08,84759.0,84758.0,0.38684966]
[1744876022261,1e-08,84759.0,84758.0,0.26740175]
[1744876022573,0.04720001,84759.0,84758.0,0.03143583]
[1744876022805,0.04720001,84759.0,84758.0,0.00944359]
[1744876023717,0.04720001,84759.0,84758.0,0.00444359]
[1744876023913,0.04720001,84759.0,84758.0,0.00644359]
[1744876024149,0.04720001,84759.0,84758.0,0.00344359]
[1744876024525,0.04720001,84759.0,84758.0,0.00544359]
[1744876024865,0.04720001,84759.0,84758.0,0.23940951]
[1744876025211,0.04720001,84759.0,84758.0,0.24040951]
[1744876033309,0.28416315,84759.0,84758.0,0.00444359]
[1744876034319,0.40361106,84759.0,84758.0,0.00344359]
[1744876034742,0.40361106,84759.0,84758.0,0.00144359]
[1744876036185,0.40561106,84759.0,84758.0,0.00144359]
[1744876036398,0.40361106,84759.0,84758.0,0.00144359]
[1744876036545,0.40461106,84759.0,84758.0,0.00144359]
[1744876036889,0.40761106,84759.0,84758.0,0.00144359]
[1744876037187,0.05220001,84759.0,84758.0,0.02518595]
[1744876037414,0.00400001,84759.0,84758.0,0.00144359]
[1744876037595,0.00600001,84759.0,84758.0,0.00144359]
[1744876038421,0.00400001,84759.0,84758.0,0.00144359]
[1744876039124,0.00100001,84759.0,84758.0,0.00144359]
[1744876039325,0.00300001,84759.0,84758.0,0.00144359]
[1744876039702,0.00400001,84759.0,84758.0,0.00144359]
[1744876049874,0.00400001,84759.0,84758.0,0.00380316]
[1744876050241,0.00400001,84759.0,84758.0,0.13724316]
[1744876050441,0.00300001,84759.0,84758.0,0.13724316]
[1744876050674,0.00100001,84759.0,84758.0,0.13724316]
[1744876051231,0.00100001,84759.0,84758.0,0.3027315]
[1744876051431,0.00100001,84759.0,84758.0,0.3504315]
[1744876051660,0.00100001,84759.0,84758.0,0.00388718]
[1744876051859,0.00100001,84759.0,84758.0,0.13732718]
[1744876052030,0.00200001,84759.0,84758.0,0.13732718]
[1744876052234,0.00100001,84759.0,84758.0,0.13732718]
[1744876052642,0.00100001,84759.0,84758.0,0.15523978]
[1744876053088,0.00100001,84759.0,84758.0,0.02179978]
[1744876053286,0.00100001,84759.0,84758.0,0.02579978]
[1744876053712,0.00100001,84759.0,84758.0,0.02379978]
[1744876054083,0.00100001,84759.0,84758.0,0.02479978]
[1744876054285,0.00100001,84759.0,84758.0,0.00988718]
[1744876055022,0.00100001,84759.0,84758.0,0.00488718]
[1744876055184,0.00100001,84759.0,84758.0,0.00588718]
[1744876055837,0.00100001,84759.0,84758.0,0.00488718]
[1744876056126,0.00100001,84759.0,84758.0,0.00588718]
[1744876058319,0.00100001,84759.0,84758.0,0.00488718]
[1744876058705,0.00100001,84759.0,84758.0,0.00388718]
[1744876060592,0.50744792,84759.0,84758.0,0.00388718]
[1744876060767,0.56988877,84759.0,84758.0,0.00388718]
[1744876061905,0.57388877,84759.0,84758.0,0.00388718]
[1744876062493,0.57988877,84759.0,84758.0,0.00388718]
[1744876062693,0.99078877,84759.0,84758.0,0.00388718]
[1744876063490,0.99178877,84759.0,84758.0,0.00388718]
[1744876063815,1.11123668,84759.0,84758.0,0.00388718]
[1744876069944,0.97724792,84759.0,84758.0,0.00388718]
[1744876070556,0.99178877,84759.0,84758.0,0.00388718]
[1744876071278,0.01180135,84736.0,84733.0,0.01180177]
[1744876072288,0.01180149,84735.0,84732.0,0.01180191]
[1744876072528,0.01180149,84735.0,84733.0,0.001]
[1744876072704,0.01180149,84735.0,84733.0,0.003]
[1744876073240,0.02043663,84735.0,84733.0,0.003]
[1744876073935,0.02043663,84735.0,84732.0,0.01180191]
[1744876074142,0.02043663,84735.0,84733.0,0.002]
[1744876074443,0.02043663,84735.0,84732.0,0.01280191]
[1744876075139,0.00863514,84735.0,84732.0,0.24783825]
[1744876075345,0.00863514,84735.0,84733.0,0.23603373]
[1744876075488,0.01180122,84737.0,84734.0,0.01180163]
[1744876075688,0.24782602,84737.0,84734.0,0.01180163]
[1744876075891,0.01180122,84737.0,84734.0,0.24783353]
[1744876076246,0.01180094,84739.0,84735.0,0.01180149]
[1744876076470,0.24782175,84739.0,84735.0,0.01180149]
[1744876077247,0.25669317,84739.0,84735.0,0.01180149]
[1744876078453,0.02067236,84739.0,84735.0,0.01180149]
[1744876078755,0.00887142,84739.0,84736.0,0.24782854]
[1744876078931,0.00887142,84739.0,84737.0,0.23602275]
[1744876079135,0.01180066,84741.0,84737.0,0.24782397]
[1744876079333,0.24781592,84741.0,84737.0,0.01180122]
[1744876079522,0.01180066,84741.0,84738.0,0.01180108]
[1744876080021,0.0118008,84740.0,84737.0,0.01180122]
[1744876080220,0.001,84739.0,84737.0,0.01180122]
[1744876080423,0.001,84739.0,84737.0,0.24782339]
[1744876081218,0.00898284,84740.0,84738.0,0.23601908]
[1744876081419,0.001,84739.0,84738.0,0.23601908]
[1744876081624,0.001,84739.0,84738.0,0.23746267]
[1744876082517,0.001,84739.0,84738.0,0.00144359]
[1744876083187,0.24781459,84741.0,84738.0,0.00144359]
[1744876083403,0.001,84739.0,84738.0,0.00144359]
[1744876083807,0.002,84739.0,84738.0,0.00144359]
[1744876084169,0.001,84739.0,84738.0,0.00144359]
[1744876085292,0.002,84739.0,84738.0,0.00144359]
[1744876092561,0.23801883,84739.0,84738.0,0.00144359]
[1744876095585,0.002,84739.0,84738.0,0.00144359]
[1744876101411,0.002,84739.0,84738.0,0.2374652]
[1744876104011,0.002,84739.0,84738.0,0.25957234]
[1744876108368,0.002,84739.0,84738.0,0.26057234]
[1744876108526,0.002,84739.0,84738.0,0.30667234]
[1744876109212,0.001,84739.0,84738.0,0.30667234]
[1744876109672,0.24779652,84747.0,84743.0,0.01180038]
[1744876109895,0.01179982,84747.0,84743.0,0.24780556]
[1744876110075,0.01179982,84747.0,84743.0,0.01180038]
[1744876110289,0.01179982,84747.0,84744.0,0.02210714]
[1744876110497,0.02044994,84747.0,84744.0,0.02210714]
[1744876110695,0.02044994,84747.0,84745.0,0.02210714]
[1744876110903,0.2446469,84747.0,84745.0,0.02210714]
[1744876111320,0.23601883,84739.0,84738.0,0.00344359]
[1744876111716,0.23601883,84739.0,84738.0,0.00488718]
[1744876111940,0.23601883,84739.0,84738.0,0.00388718]
[1744876113029,0.23701883,84739.0,84738.0,0.00388718]
[1744876114015,0.23901883,84739.0,84738.0,0.00388718]
[1744876116368,0.003,84739.0,84738.0,0.03142005]
[1744876116774,0.003,84739.0,84738.0,0.26744166]
[1744876117780,0.001,84739.0,84738.0,0.26744166]
[1744876118232,0.0118001,84745.0,84742.0,0.24781064]
[1744876119845,0.0138001,84745.0,84742.0,0.24781064]
[1744876120609,0.0148001,84745.0,84742.0,0.24781064]
[1744876121874,0.23600769,84743.0,84738.0,0.00388718]
[1744876122081,0.01180066,84741.0,84738.0,0.01568826]
[1744876122884,0.01180066,84741.0,84738.0,0.25170816]
[1744876123404,0.001,84741.0,84738.0,0.25170816]
[1744876123807,0.01280066,84741.0,84738.0,0.01568826]
[1744876124862,0.01380066,84741.0,84738.0,0.01568826]
[1744876126331,0.01380066,84741.0,84738.0,0.25170825]
[1744876126862,0.002,84741.0,84738.0,0.25170825]
[1744876128508,0.01380066,84741.0,84738.0,0.00388718]
[1744876128809,0.002,84741.0,84738.0,0.25170799]
[1744876129029,0.002,84741.0,84740.0,0.23601604]
[1744876129413,0.23601882,84740.0,84738.0,0.00388718]
[1744876130973,0.23801882,84740.0,84738.0,0.00388718]
[1744876131413,0.002,84740.0,84739.0,0.0458]
[1744876131609,0.002,84740.0,84739.0,0.17928]
[1744876132557,0.001,84740.0,84739.0,0.17928]
[1744876132803,0.01179968,84748.0,84744.0,0.01180024]
[1744876133464,0.01179982,84747.0,84744.0,0.01180024]
[1744876134314,0.02048866,84747.0,84744.0,0.01180024]
[1744876135413,0.01179996,84746.0,84742.0,0.23600998]
[1744876135743,0.01179996,84746.0,84742.0,0.2478105]
[1744876136711,0.01179996,84746.0,84742.0,0.2488105]
[1744876136870,0.01179996,84746.0,84742.0,0.2498105]
[1744876137270,0.01179996,84746.0,84743.0,0.01180038]
[1744876138794,0.01179996,84746.0,84743.0,0.01280038]
[1744876141679,0.01179996,84746.0,84743.0,0.01424397]
[1744876142119,0.23600212,84745.0,84743.0,0.00244359]
[1744876142556,0.01179996,84746.0,84743.0,0.00244359]
[1744876143158,0.01179996,84746.0,84743.0,0.00144359]
[1744876143586,0.01179996,84746.0,84743.0,0.00244359]
[1744876143772,0.01179996,84746.0,84743.0,0.00144359]
[1744876143971,0.01179996,84746.0,84743.0,0.00244359]
[1744876144378,0.25648731,84747.0,84744.0,0.01180024]
[1744876144687,0.25648731,84747.0,84743.0,0.00244359]
[1744876144908,0.01179996,84746.0,84743.0,0.00244359]
[1744876145408,0.01179996,84746.0,84743.0,0.00144359]
[1744876146292,0.01179996,84746.0,84743.0,0.00244359]
[1744876149063,0.24780127,84746.0,84743.0,0.00244359]
[1744876155795,0.23600459,84745.0,84743.0,0.00244359]
[1744876156211,0.0475,84744.0,84743.0,0.00244359]
[1744876156449,0.0475,84744.0,84716.0,0.23608287]
[1744876156450,0.23603833,84732.0,84719.0,0.0496]
[1744876156641,0.23605783,84725.0,84704.0,0.0008426]
[1744876156841,0.35550574,84725.0,84724.0,0.0009177]
[1744876156994,0.40300574,84725.0,84724.0,0.0009177]
[1744876157395,0.41175087,84725.0,84724.0,0.0009177]
[1744876157601,0.77831211,84725.0,84724.0,0.0009177]
[1744876157817,0.77831211,84725.0,84724.0,1e-08]
[1744876158454,0.77931211,84725.0,84724.0,1e-08]
[1744876158849,0.77831211,84725.0,84724.0,1e-08]
[1744876159070,0.78031211,84725.0,84724.0,1e-08]
[1744876159622,1.18921211,84725.0,84724.0,1e-08]
[1744876159793,1.19321211,84725.0,84724.0,1e-08]
[1744876160386,1.19521211,84725.0,84724.0,1e-08]
[1744876160591,1.20521211,84725.0,84724.0,1e-08]
[1744876161310,1.20321211,84725.0,84724.0,1e-08]
[1744876161678,1.20721211,84725.0,84724.0,1e-08]
[1744876161875,1.20321211,84725.0,84724.0,1e-08]
[1744876162079,1.20821211,84725.0,84724.0,0.00100001]
[1744876163321,1.25724924,84725.0,84724.0,0.00100001]
[1744876163922,1.20821211,84725.0,84724.0,0.00100001]
[1744876164958,1.20821211,84725.0,84724.0,1e-08]
[1744876181759,1.20821211,84725.0,84704.0,0.0008426]
[1744876181760,0.23609963,84710.0,84704.0,0.0008426]
[1744876181889,1.12098839,84710.0,84709.0,0.00129311]
[1744876182981,1.12198839,84710.0,84709.0,0.00129311]
[1744876183182,1.12398839,84710.0,84709.0,0.00129311]
[1744876183482,1.12298839,84710.0,84709.0,0.00129311]
[1744876183721,1.12498839,84710.0,84709.0,0.00129311]
[1744876186208,0.57611357,84705.0,84704.0,0.0008426]
[1744876186423,0.35454085,84704.0,84698.0,0.0008426]
[1744876186628,0.47398876,84704.0,84698.0,0.0008426]
[1744876188014,0.50709701,84704.0,84698.0,0.0008426]
[1744876188713,0.62654492,84704.0,84698.0,0.0008426]
[1744876189357,0.01180623,84701.0,84698.0,0.0008426]
[1744876189495,0.35454085,84699.0,84698.0,0.0008426]
[1744876189700,0.47398876,84699.0,84698.0,0.0008426]
[1744876190040,0.88488876,84699.0,84698.0,0.0008426]
[1744876190613,0.88788876,84699.0,84698.0,0.0018426]
[1744876190820,0.88988876,84699.0,84698.0,0.0018426]
[1744876191842,0.90301712,84699.0,84698.0,0.0018426]
[1744876192183,0.2361526,84691.0,84683.0,0.000844]
[1744876192441,1.26330962,84691.0,84683.0,0.000844]
[1744876193125,0.59071855,84682.0,84670.0,0.0482]
[1744876193316,0.71016646,84682.0,84670.0,0.0482]
[1744876194486,0.71061665,84682.0,84670.0,0.0482]
[1744876195430,0.72729993,84682.0,84681.0,0.003]
[1744876196044,0.71275908,84682.0,84681.0,0.003]
[1744876196544,0.37275908,84682.0,84681.0,0.004]
[1744876197692,0.3610758,84682.0,84681.0,0.004]
[1744876200068,0.37561665,84682.0,84681.0,0.004]
[1744876201293,0.37661664,84682.0,84681.0,1e-08]
[1744876201735,0.59073528,84676.0,84666.0,4.54818]
[1744876201867,0.71018319,84676.0,84666.0,4.54818]
[1744876203127,0.71118319,84676.0,84666.0,4.54818]
[1744876203521,0.71218319,84676.0,84666.0,4.54818]
[1744876204447,1.12308319,84676.0,84666.0,4.54818]
[1744876204820,1.12108319,84676.0,84666.0,4.54818]